bitfinex/quotes_SOLUSD_20251001
["timestamp","ask_amount","ask_price","bid_price","bid_amount"]
[1759349542669,3.7580777,220.21,220.14,20.8]
[1759349542983,0.7,220.21,220.16,20.8]
[1759349543190,0.7,220.2,220.16,20.8]
[1759349543355,32.14,220.23,220.16,20.8]
[1759349543556,0.71,220.25,220.18,20.8]
[1759349543755,0.71,220.28,220.19,10.87647521]
[1759349543963,32.14,220.29,220.22,20.8]
[1759349544165,0.71,220.27,220.22,20.8]
[1759349544364,0.71,220.26,220.22,20.8]
[1759349545454,0.71,220.25,220.22,20.8]
[1759349545661,0.28432314,220.23,220.12,0.2]
[1759349545859,0.71,220.22,220.12,0.91]
[1759349546164,33.09,220.21,220.12,0.91]
[1759349546371,0.71,220.2,220.12,0.91]
[1759349546575,0.71,220.19,220.12,0.91]
[1759349546892,0.71,220.18,220.12,0.91]
[1759349547574,0.71,220.17,220.13,20.8]
[1759349547889,0.71,220.16,220.13,20.8]
[1759349548882,32.38,220.18,220.12,0.2]
[1759349549058,33.09,220.18,220.13,20.8]
[1759349549256,0.71,220.17,220.13,20.8]
[1759349549692,0.71,220.17,220.12,0.2]
[1759349551280,0.71,220.17,220.13,20.8]
[1759349551595,32.38,220.18,220.13,20.8]
[1759349551786,0.71,220.17,220.13,20.8]
[1759349551963,0.71,220.16,220.13,20.8]
[1759349553368,33.09,220.18,220.13,20.8]
[1759349553568,0.71,220.17,220.13,20.8]
[1759349554071,0.71,220.19,220.14,0.71]
[1759349554274,33.03,220.18,220.13,20.8]
[1759349554507,33.03,220.18,220.13,21.51]
[1759349555070,0.71,220.17,220.13,20.8]
[1759349555794,0.71,220.16,220.13,20.8]
[1759349557600,33.03,220.18,220.13,20.8]
[1759349557780,0.71,220.17,220.13,20.8]
[1759349559794,0.71,220.16,220.13,20.8]
[1759349560876,32.32,220.18,220.13,20.8]
[1759349561074,0.71,220.17,220.13,20.8]
[1759349561273,0.71,220.16,220.08,0.2]
[1759349561585,0.71,220.16,220.04,0.2]
[1759349561586,3.82083124,220.12,220.04,0.2]
[1759349561777,20.8,220.07,220.04,0.2]
[1759349561974,34.21,220.06,220.04,0.2]
[1759349562197,37.26666499,220.06,220.04,0.2]
[1759349562395,2.53078885,220.05,220.04,0.2]
[1759349562587,4.87745384,220.05,220.04,0.2]
[1759349562900,3.05666499,220.05,220.04,0.2]
[1759349563106,3.05666499,220.1,220.04,0.91]
[1759349563398,3.05666499,220.09,220.04,0.91]
[1759349563597,3.05666499,220.08,220.05,0.71]
[1759349563771,3.05666499,220.07,220.05,0.71]
[1759349563977,3.05666499,220.06,220.05,0.71]
[1759349564187,33.58,220.06,220.04,0.2]
[1759349564493,3.19882656,220.05,220.04,0.2]
[1759349564878,5.16152837,220.05,220.04,0.2]
[1759349565179,38.74152837,220.05,220.04,0.2]
[1759349566096,35.68486338,220.05,220.04,0.2]
[1759349566600,38.74152837,220.05,220.04,0.2]
[1759349567100,35.68486338,220.05,220.04,0.2]
[1759349567683,39.45152837,220.05,220.04,0.2]
[1759349567882,36.39486338,220.05,220.04,0.2]
[1759349568601,50.32800358,220.05,220.04,0.2]
[1759349569717,20.56883482,220.05,220.04,0.2]
[1759349569890,54.06883482,220.05,220.04,0.2]
[1759349570085,50.24800358,220.05,220.04,0.2]
[1759349571106,31.67647521,220.02,220.0,0.16]
[1759349571308,30.87647521,220.0,219.99,0.2]
[1759349571509,31.01863678,219.96,219.95,0.2]
[1759349571686,45.27863678,219.96,219.95,0.2]
[1759349572006,14.69530177,219.96,219.95,0.2]
[1759349572207,50.77708575,219.96,219.95,0.2]
[1759349572407,25.67844897,219.96,219.95,0.2]
[1759349572589,56.90178398,219.96,219.95,0.2]
[1759349572795,59.93844897,219.96,219.95,0.91]
[1759349573700,56.88178398,219.96,219.95,0.91]
[1759349575308,56.88178398,219.96,219.95,0.2]
[1759349576619,22.62178398,219.96,219.95,0.2]
[1759349576919,56.84178398,219.96,219.95,0.2]
[1759349577305,22.62178398,219.96,219.95,0.2]
[1759349577503,56.82178398,219.96,219.95,0.2]
[1759349577698,22.62178398,219.96,219.95,0.2]
[1759349577894,56.78178398,219.96,219.95,0.2]
[1759349578722,22.62178398,219.96,219.95,0.2]
[1759349578922,56.78178398,219.96,219.95,0.2]
[1759349580202,22.62178398,219.96,219.95,0.2]
[1759349580521,35.94178398,219.96,219.95,0.91]
[1759349580711,35.94178398,219.96,219.95,0.2]
[1759349581107,35.94178398,219.96,219.95,0.91]
[1759349581520,35.94178398,219.96,219.95,0.2]
[1759349581827,35.92178398,219.96,219.95,0.91]
[1759349582325,35.90178398,219.96,219.95,0.91]
[1759349583020,35.90178398,219.96,219.95,0.2]
[1759349584217,35.90178398,219.96,219.95,0.91]
[1759349584416,35.90178398,219.96,219.95,0.2]
[1759349587542,35.80178398,219.96,219.95,0.2]
[1759349588619,35.78178398,219.96,219.95,0.2]
[1759349588933,1.82178398,219.96,219.95,0.2]
[1759349589240,35.76178398,219.96,219.95,0.2]
[1759349589624,33.94,219.96,219.95,0.2]
[1759349591515,45.43647521,219.96,219.95,0.2]
[1759349591833,23.81763279,219.96,219.95,0.2]
[1759349592137,65.67863678,219.96,219.95,0.2]
[1759349592343,68.69626957,219.96,219.95,0.2]
[1759349592636,65.67863678,219.96,219.95,0.2]
[1759349594443,31.81863678,219.96,219.95,0.2]
[1759349594645,65.65863678,219.96,219.95,0.2]
[1759349596026,65.74079835,219.96,219.95,0.2]
[1759349597842,66.36079835,219.96,219.95,0.2]
[1759349598927,69.38639971,219.96,219.95,0.2]
[1759349599941,71.20851564,219.96,219.95,0.2]
[1759349600648,30.87647521,219.95,219.93,0.2]
[1759349600852,33.90207657,219.95,219.93,0.2]
[1759349601036,34.52207657,219.95,219.93,0.2]
[1759349601356,57.36207657,219.95,219.93,0.2]
[1759349602033,30.87647521,219.93,219.92,0.2]
[1759349602228,67.66207657,219.93,219.92,0.2]
[1759349602450,68.28207657,219.93,219.92,0.2]
[1759349602851,13.90207657,219.93,219.92,0.2]
[1759349603055,44.63647521,219.93,219.92,0.2]
[1759349603345,48.28207657,219.93,219.92,0.2]
[1759349603543,68.42423814,219.93,219.92,0.2]
[1759349603746,68.42423814,219.93,219.92,0.0579]
[1759349604146,72.97113942,219.93,219.92,0.0579]
[1759349604350,51.67647521,219.9,219.89,0.2]
[1759349604657,88.70207657,219.9,219.89,0.2]
[1759349604854,88.70207657,219.9,219.81,0.2]
[1759349604855,10.87647521,219.82,219.81,0.2]
[1759349605030,44.87647521,219.82,219.81,0.2]
[1759349605232,48.52207657,219.82,219.81,0.2]
[1759349605844,14.52207657,219.82,219.81,0.2]
[1759349606057,45.51647521,219.82,219.81,0.2]
[1759349606366,76.15397657,219.82,219.81,0.2]
[1759349607738,42.13397657,219.82,219.81,0.2]
[1759349607958,42.41829971,219.82,219.81,0.2]
[1759349608261,28.47397657,219.82,219.81,0.00214645]
[1759349608462,62.47397657,219.82,219.81,0.00214645]
[1759349608639,62.61613814,219.82,219.81,0.00214645]
[1759349609035,27.99613814,219.82,219.81,0.00214645]
[1759349609250,62.01613814,219.82,219.81,0.00214645]
[1759349609438,62.77829971,219.82,219.81,0.00214645]
[1759349610038,59.75269835,219.82,219.81,0.00214645]
[1759349610263,62.77605938,219.82,219.81,0.00214645]
[1759349611460,62.15605938,219.82,219.81,0.00214645]
[1759349611642,0.14216157,219.81,219.76,0.66]
[1759349611843,20.8,219.75,219.73,0.2]
[1759349612177,34.0,219.74,219.73,0.2]
[1759349612951,34.0,219.74,219.73,0.86]
[1759349613451,34.0,219.74,219.73,0.36]
[1759349614852,33.94,219.74,219.73,0.36]
[1759349615566,45.10079835,219.74,219.73,0.36]
[1759349628971,11.16079835,219.73,219.7,0.66]
[1759349629199,11.16079835,219.73,219.59,11.38456886]
[1759349629200,33.7,219.72,219.68,0.66]
[1759349629372,20.8,219.69,219.68,0.66]
[1759349629571,54.48,219.69,219.68,0.66]
[1759349630693,33.66,219.69,219.68,0.66]
[1759349631773,33.66,219.69,219.56,20.8]
[1759349632070,20.8,219.65,219.57,0.66]
[1759349632270,54.44,219.64,219.57,0.66]
[1759349632684,20.8,219.64,219.57,0.66]
[1759349632886,33.62,219.63,219.57,0.66]
[1759349633290,33.62,219.62,219.57,0.66]
[1759349634400,33.62,219.62,219.57,5.21433791]
[1759349634574,33.62,219.62,219.58,0.71]
[1759349634773,20.8,219.64,219.58,0.71]
[1759349635100,33.6,219.63,219.58,0.71]
[1759349635486,33.58,219.62,219.58,0.71]
[1759349636104,33.58,219.62,219.61,20.8]
[1759349636282,33.58,219.62,219.61,21.51]
[1759349636967,11.71863678,219.71,219.61,21.51]
[1759349637171,33.70216157,219.7,219.62,0.71]
[1759349638703,0.14216157,219.7,219.62,0.71]
[1759349638884,33.56,219.69,219.62,0.71]
[1759349640607,10.87647521,219.71,219.64,20.8]
[1759349640808,33.54,219.68,219.65,0.71]
[1759349640971,33.54,219.68,219.63,20.8]
[1759349641285,33.54,219.68,219.64,0.71]
[1759349641491,33.54,219.68,219.65,0.71]
[1759349641793,0.7,219.7,219.65,0.71]
[1759349641973,33.48,219.69,219.65,0.71]
[1759349643710,0.7,219.76,219.66,0.71]
[1759349643879,11.57647521,219.78,219.66,0.71]
[1759349644078,33.44,219.77,219.66,0.71]
[1759349644283,0.7,219.78,219.66,0.71]
[1759349644502,33.44,219.77,219.66,0.71]
[1759349645813,33.44,219.77,219.69,20.8]
[1759349646005,33.44,219.77,219.7,0.71]
[1759349646187,33.44,219.77,219.7,21.51]
[1759349646383,33.44,219.77,219.71,0.71]
[1759349647878,31.36681133,219.79,219.71,0.71]
[1759349647879,31.36681133,219.79,219.71,5.26134975]
[1759349648089,33.38,219.78,219.72,0.71]
[1759349648602,3.77920129,219.86,219.72,0.71]
[1759349648603,0.7,219.83,219.72,0.71]
[1759349648787,16.42,219.82,219.72,5.26106152]
[1759349648989,17.12,219.82,219.73,21.51]
[1759349649187,17.12,219.82,219.74,0.71]
[1759349651509,17.12,219.82,219.74,5.26078557]
[1759349651684,33.32,219.81,219.75,0.71]
[1759349651888,33.32,219.8,219.75,0.71]
[1759349652299,21.5,219.84,219.75,0.71]
[1759349652507,33.32,219.86,219.75,0.71]
[1759349652709,0.7,219.85,219.75,0.71]
[1759349652908,0.7,219.85,219.78,20.8]
[1759349653090,0.7,219.85,219.78,21.51]
[1759349653808,0.7,219.85,219.79,0.71]
[1759349656404,34.02,219.86,219.79,5.25977727]
[1759349656614,33.26,219.85,219.8,0.71]
[1759349657313,33.26,219.85,219.8,5.25947143]
[1759349657615,33.26,219.85,219.81,0.71]
[1759349657911,33.26,219.85,219.82,0.71]
[1759349658109,33.26,219.85,219.83,0.71]
[1759349658900,33.26,219.85,219.8,4.54947143]
[1759349658901,33.26,219.85,219.81,0.71]
[1759349659118,33.26,219.85,219.82,0.71]
[1759349659446,0.2,219.95,219.83,0.71]
[1759349659594,0.7,219.92,219.83,0.71]
[1759349659794,0.7,219.93,219.83,0.71]
[1759349660726,33.28,219.92,219.83,21.51]
[1759349660910,33.28,219.92,219.84,0.7]
[1759349661316,33.28,219.92,219.85,4.54855583]
[1759349661610,0.66,219.94,219.86,0.7]
[1759349661797,33.26,219.92,219.86,0.7]
[1759349663424,33.26,219.92,219.82,32.17277986]
[1759349663425,0.66,219.91,219.82,21.5]
[1759349663723,0.67,219.9,219.82,21.5]
[1759349663912,0.67,219.89,219.82,21.5]
[1759349664220,0.67,219.88,219.8,0.71]
[1759349664420,0.67,219.88,219.79,0.71]
[1759349664623,0.67,219.87,219.79,0.71]
[1759349664810,33.22,219.86,219.79,0.71]
[1759349665007,0.67,219.85,219.79,0.71]
[1759349666933,0.67,219.85,219.79,5.25979275]
[1759349669042,33.22,219.86,219.79,5.25979275]
[1759349669238,33.22,219.86,219.78,4.55000455]
[1759349669546,33.22,219.86,219.8,0.71]
[1759349670347,33.89,219.86,219.8,0.71]
[1759349674143,33.89,219.86,219.8,5.25953151]
[1759349675523,33.89,219.86,219.81,0.71]
[1759349676754,0.67,219.85,219.81,0.71]
[1759349677259,33.22,219.86,219.79,25.34979753]
[1759349677461,33.22,219.86,219.8,5.25939773]
[1759349677753,0.67,219.85,219.7,79.2]
[1759349677926,33.69,219.84,219.77,0.71]
[1759349678252,33.02,219.83,219.77,0.71]
[1759349678636,33.69,219.83,219.77,0.71]
[1759349679639,33.69,219.83,219.77,5.26020523]
[1759349680522,0.67,219.83,219.77,5.26020523]
[1759349680728,33.67,219.83,219.77,5.26020523]
[1759349681736,33.67,219.83,219.77,0.71]
[1759349682652,33.67,219.83,219.77,5.26017164]
[1759349685157,33.61,219.82,219.72,0.71]
[1759349685457,53.74,219.81,219.72,0.71]
[1759349685957,33.61,219.8,219.72,5.26117271]
[1759349686135,32.94,219.8,219.73,0.71]
[1759349686336,0.67,219.79,219.73,0.71]
[1759349687761,33.59,219.79,219.73,0.71]
[1759349688060,0.67,219.79,219.73,5.26096593]
[1759349689349,0.44255,219.79,219.73,5.26096593]
[1759349690743,32.9,219.8,219.74,0.71]
[1759349691449,33.57,219.8,219.74,0.71]
[1759349692168,0.67,219.8,219.74,0.71]
[1759349692339,33.55,219.8,219.74,0.71]
[1759349692544,0.67,219.8,219.74,0.71]
[1759349692744,33.53,219.8,219.74,0.71]
[1759349693147,32.86,219.8,219.74,0.71]
[1759349693350,33.53,219.8,219.74,0.71]
[1759349698670,33.47,219.83,219.74,5.26080325]
[1759349698870,33.47,219.83,219.75,0.68]
[1759349699177,33.47,219.83,219.75,0.96432314]
[1759349699178,32.78,219.83,219.75,0.96432314]
[1759349699511,32.78,219.84,219.76,15.92646522]
[1759349699649,33.45,219.85,219.77,0.68]
[1759349699848,0.67,219.85,219.77,0.68]
[1759349700066,33.43,219.85,219.77,0.68]
[1759349700381,60.25195281,219.97,219.77,0.68]
[1759349700382,0.67,219.91,219.82,11.16079835]
[1759349700690,32.96,219.95,219.83,0.68]
[1759349700843,0.87,219.95,219.85,20.8]
[1759349701165,0.87,219.95,219.86,0.68]
[1759349701351,0.87,219.95,219.87,4.54814208]
[1759349701673,0.87,219.95,219.88,0.68]
[1759349702574,0.87,219.95,219.86,13.32162675]
[1759349702869,0.2,219.95,219.9,20.8]
[1759349703073,0.2,219.95,219.91,0.68]
[1759349703579,0.2,219.95,219.91,5.22716183]
[1759349703771,0.2,219.95,219.92,0.68]
[1759349704160,0.2,219.95,219.9,20.8]
[1759349705480,0.2,219.95,219.91,4.54716183]
[1759349705898,0.2,219.95,219.91,15.91544885]
[1759349706066,0.2,219.95,219.92,0.68]
[1759349706266,0.2,219.95,219.91,15.91544885]
[1759349706480,0.2,219.95,219.92,0.68]
[1759349706688,0.2,219.95,219.93,0.68]
[1759349707002,0.2,219.95,219.94,0.68]
[1759349707279,0.2,219.95,219.91,15.91544885]
[1759349707280,0.2,219.95,219.92,0.68]
[1759349707584,0.67,220.0,219.93,4.54690128]
[1759349707763,0.67,220.0,219.94,0.68]
[1759349708078,0.67,220.02,219.94,0.68]
[1759349708770,0.67,220.02,219.93,15.91415449]
[1759349708771,0.67,220.02,219.95,20.8]
[1759349708962,0.67,220.01,219.95,20.8]
[1759349709165,32.72,220.04,219.95,20.8]
[1759349709166,0.67,220.0,219.95,20.8]
[1759349709366,0.67,219.99,219.95,20.8]
[1759349709560,0.67,219.98,219.95,20.8]
[1759349710183,0.67,219.98,219.94,4.5466824]
[1759349710384,0.67,220.0,219.95,0.68]
[1759349710578,0.67,219.99,219.94,5.2266824]
[1759349710755,0.67,219.99,219.95,21.48]
[1759349710961,0.67,219.98,219.95,20.8]
[1759349711292,0.67,220.01,219.96,0.68]
[1759349711468,0.67,220.01,219.95,20.8]
[1759349711469,32.56503053,220.06,219.97,0.68]
[1759349711667,0.67,220.05,219.97,0.68]
[1759349712686,0.67,220.05,219.98,4.5458678]
[1759349712883,0.67,220.05,219.99,0.68]
[1759349713092,0.87,220.07,219.99,0.68]
[1759349713886,0.2,220.07,219.99,0.68]
[1759349714192,0.2,220.07,220.01,20.8]
[1759349714390,0.2,220.07,220.02,0.68]
[1759349714577,0.2,220.07,220.03,5.22468827]
[1759349714976,0.2,220.07,220.04,0.68]
[1759349716795,0.2,220.07,220.04,5.22452683]
[1759349717286,0.2,220.07,220.04,4.54452683]
[1759349717497,0.2,220.07,220.04,5.22452683]
[1759349717792,0.2,220.07,220.04,4.54452683]
[1759349718093,0.2,220.07,220.04,0.68]
[1759349718277,0.2,220.07,220.05,0.68]
[1759349718478,0.2,220.07,220.06,0.68]
[1759349718782,0.2,220.07,220.03,0.68]
[1759349719171,0.2,220.07,220.04,0.68]
[1759349719373,0.2,220.07,220.05,0.68]
[1759349720083,0.2,220.07,220.06,0.68]
[1759349722594,0.2,220.07,220.05,4.54442097]
[1759349723088,0.2,220.07,220.05,5.21442097]
[1759349723467,0.2,220.07,220.06,0.68]
[1759349725690,0.86,220.07,219.99,0.68]
[1759349725876,0.66,220.06,219.99,0.68]
[1759349727697,0.66,220.06,219.99,5.22556052]
[1759349727889,0.66,220.05,219.99,5.22556052]
[1759349728492,0.66,220.05,219.99,4.54556052]
[1759349728796,0.2,220.07,220.01,10.87647521]
[1759349729096,0.2,220.07,220.02,0.68]
[1759349729597,0.86,220.07,220.02,21.48]
[1759349729796,0.66,220.06,220.0,4.54543071]
[1759349730498,0.2,220.07,220.01,0.68]
[1759349731195,0.86,220.07,220.01,0.68]
[1759349731790,0.86,220.07,220.02,4.54504135]
[1759349731994,0.86,220.07,220.02,5.22504135]
[1759349732898,0.66,220.06,220.02,5.22504135]
[1759349733473,0.2,220.07,220.02,5.22504135]
[1759349733698,0.86,220.07,220.02,5.22504135]
[1759349734288,0.66,220.06,220.02,5.22504135]
[1759349734595,0.2,220.07,219.99,15.90981407]
[1759349734799,0.2,220.07,220.03,0.68]
[1759349735189,0.86,220.07,220.02,0.68]
[1759349735899,0.86,220.07,219.99,15.90981407]
[1759349736106,0.2,220.07,220.03,0.68]
[1759349736406,0.2,220.07,219.99,15.90981407]
[1759349736703,0.2,220.07,220.04,0.68]
[1759349739385,0.2,220.07,220.04,4.54459075]
[1759349739602,0.2,220.07,220.04,5.22459075]
[1759349743006,0.2,220.07,220.05,0.68]
[1759349743205,0.2,220.07,220.05,21.48]
[1759349743503,0.2,220.07,220.06,0.68]
[1759349744314,0.2,220.07,220.06,5.22421521]
[1759349746899,0.76,220.16,220.07,10.87647521]
[1759349747096,0.76,220.16,220.08,0.96432314]
[1759349747296,0.76,220.16,220.09,0.68]
[1759349747692,0.76,220.16,220.1,15.90186278]
[1759349747903,0.76,220.16,220.11,0.68]
[1759349748111,0.76,220.16,220.12,0.68]
[1759349748507,0.1,220.16,220.1,15.90186278]
[1759349748710,0.1,220.16,220.11,0.68]
[1759349749592,0.1,220.16,220.12,4.54297655]
[1759349749987,0.1,220.16,220.13,0.68]
[1759349751316,0.76,220.21,220.16,10.87647521]
[1759349751317,0.1,220.21,220.16,10.87647521]
[1759349751528,0.1,220.21,220.19,20.8]
[1759349751988,0.1,220.21,220.19,21.48]
[1759349752391,0.1,220.21,220.19,20.8]
[1759349752603,0.66,220.2,220.14,16.57897337]
[1759349752810,0.66,220.2,220.18,20.8]
[1759349754918,0.67,220.19,220.15,0.69]
[1759349755308,0.67,220.19,220.15,5.23232283]
[1759349756198,0.77,220.21,220.15,5.23232283]
[1759349757192,0.1,220.21,220.16,0.69]
[1759349757606,0.1,220.21,220.17,0.69]
[1759349758002,0.77,220.21,220.17,0.69]
[1759349758417,0.1,220.21,220.18,0.69]
[1759349758819,0.1,220.21,220.14,15.89897337]
[1759349758820,0.1,220.21,220.19,0.69]
[1759349759925,0.1,220.21,220.18,4.54158996]
[1759349760607,0.1,220.21,220.19,0.69]
[1759349761301,0.1,220.21,220.17,5.23192638]
[1759349761506,0.1,220.21,220.18,0.69]
[1759349761823,0.1,220.21,220.18,5.23166792]
[1759349762000,0.1,220.21,220.19,0.69]
[1759349763299,0.1,220.21,220.15,15.89810956]
[1759349763507,0.1,220.21,220.18,0.69]
[1759349765298,0.1,220.21,220.18,5.23173172]
[1759349765702,0.1,220.21,220.19,0.69]
[1759349767919,0.1,220.21,220.17,5.23194183]
[1759349768120,0.1,220.21,220.18,0.69]
[1759349769328,0.1,220.21,220.16,4.54215116]
[1759349769540,0.1,220.21,220.19,0.69]
[1759349769831,0.1,220.21,220.16,4.54215116]
[1759349770031,0.1,220.21,220.17,0.69]
[1759349770333,0.1,220.21,220.18,0.69]
[1759349770631,0.67,220.2,220.15,0.69]
[1759349770842,0.1,220.21,220.16,4.54213906]
[1759349771051,0.77,220.21,220.17,0.69]
[1759349772039,0.77,220.21,220.13,53.4]
[1759349772040,0.67,220.2,220.15,4.54233869]
[1759349772342,0.1,220.21,220.17,0.69]
[1759349774627,0.1,220.21,220.18,4.54173857]
[1759349774822,0.1,220.21,220.19,0.69]
[1759349775030,0.1,220.21,220.18,5.23173857]
[1759349775238,0.1,220.21,220.19,0.69]
[1759349775641,0.1,220.21,220.17,0.69]
[1759349775836,0.1,220.21,220.18,0.69]
[1759349777430,0.1,220.21,220.19,0.69]
[1759349779139,0.1,220.21,220.19,4.54147584]
[1759349779441,0.1,220.21,220.19,5.23147584]
[1759349779747,0.1,220.21,220.2,0.69]
[1759349780550,0.1,220.21,220.19,4.54147584]
[1759349780930,0.1,220.21,220.19,5.24147584]
[1759349781162,0.1,220.21,220.19,4.54147584]
[1759349781452,0.1,220.21,220.2,0.7]
[1759349782666,0.1,220.21,220.2,5.24132606]
[1759349783451,0.1,220.21,220.2,16.40212441]
[1759349785136,0.1,220.21,220.2,49.00212441]
[1759349786759,0.1,220.21,220.2,16.40212441]
[1759349786942,0.1,220.21,220.2,48.98212441]
[1759349787148,0.1,220.21,220.2,16.40212441]
[1759349787350,0.1,220.21,220.2,48.98212441]
[1759349788743,0.65,220.29,220.21,11.16079835]
[1759349788942,0.65,220.29,220.22,0.71]
[1759349789160,0.65,220.29,220.23,32.58]
[1759349789365,0.65,220.29,220.24,0.71]
[1759349789584,0.65,220.29,220.25,0.71]
[1759349789740,0.1,220.3,220.26,0.71]
[1759349790658,0.1,220.3,220.27,37.11988287]
[1759349790849,0.1,220.3,220.27,37.82988287]
[1759349791045,0.1,220.3,220.28,0.71]
[1759349792959,0.1,220.3,220.29,5.24947069]
[1759349794162,0.1,220.3,220.27,50.75327788]
[1759349794351,0.1,220.3,220.28,32.58]
[1759349795041,0.1,220.3,220.28,37.11950181]
[1759349795256,0.1,220.3,220.28,37.82950181]
[1759349798349,0.1,220.3,220.29,37.09947069]
[1759349801269,0.1,220.3,220.29,50.73286439]
[1759349803761,0.1,220.3,220.29,62.60366274]
[1759349804552,0.1,220.3,220.29,64.42130752]
[1759349807176,0.1,220.39,220.33,20.8]
[1759349807177,0.75,220.39,220.33,20.8]
[1759349807372,0.65,220.38,220.34,32.56]
[1759349807561,0.65,220.38,220.34,33.27]
[1759349808686,0.65,220.38,220.35,4.53823462]
[1759349808976,0.1,220.39,220.36,33.27]
[1759349809653,0.1,220.39,220.37,0.71]
[1759349809853,0.1,220.39,220.38,32.54]
[1759349810655,0.1,220.39,220.38,37.07761684]
[1759349811177,0.1,220.39,220.38,37.78761684]
[1759349811680,0.1,220.39,220.38,37.07761684]
[1759349812276,0.75,220.39,220.38,32.54]
[1759349812476,0.75,220.39,220.37,37.07765296]
[1759349812674,0.75,220.39,220.37,32.54]
[1759349814081,0.1,220.39,220.38,4.53761684]
[1759349815848,0.1,220.39,220.38,37.07761684]
[1759349816456,0.77,220.39,220.38,32.54]
[1759349816658,0.77,220.39,220.34,32.54]
[1759349816953,0.67,220.38,220.34,32.54]
[1759349817157,0.67,220.37,220.34,32.54]
[1759349818058,0.67,220.36,220.32,4.53883008]
[1759349818260,0.67,220.35,220.32,37.07883008]
[1759349818561,0.67,220.34,220.31,32.54]
[1759349818758,0.67,220.33,220.31,32.54]
[1759349818976,0.1,220.39,220.31,32.54]
[1759349819164,0.1,220.39,220.32,32.63079835]
[1759349819369,0.1,220.39,220.33,32.52]
[1759349819665,0.1,220.39,220.33,35.00731446]
[1759349819872,0.1,220.39,220.34,0.67]
[1759349820075,0.1,220.39,220.35,33.19]
[1759349820456,0.1,220.39,220.37,4.53782275]
[1759349820676,0.1,220.39,220.38,32.52]
[1759349820884,0.1,220.39,220.38,33.19]
[1759349821879,0.1,220.39,220.38,32.52]
[1759349822381,0.1,220.39,220.38,33.19]
[1759349822566,0.1,220.39,220.38,37.72761684]
[1759349823376,0.1,220.39,220.38,37.05761684]
[1759349823968,0.1,220.39,220.38,32.52]
[1759349824362,0.77,220.39,220.36,20.8]
[1759349824578,0.77,220.39,220.36,32.52]
[1759349826278,0.77,220.39,220.36,37.05801586]
[1759349827773,0.67,220.38,220.34,4.53831813]
[1759349827974,0.67,220.37,220.34,37.05831813]
[1759349828172,0.1,220.39,220.34,37.05831813]